bitfinex/quotes_BTCUSD_20250723
["timestamp","ask_amount","ask_price","bid_price","bid_amount"]
[1753241610763,0.53147108,118950.0,118940.0,0.33123414]
[1753241610977,0.53147108,118950.0,118940.0,0.31441945]
[1753241611180,0.53147108,118950.0,118940.0,0.306012]
[1753241611406,0.52306419,118950.0,118940.0,0.13786]
[1753241612376,0.52505419,118950.0,118940.0,0.13786]
[1753241613151,0.52505419,118950.0,118940.0,0.32282698]
[1753241613578,0.53147094,118950.0,118940.0,0.33922698]
[1753241613806,0.53147094,118950.0,118940.0,0.34763429]
[1753241614524,0.53147094,118950.0,118940.0,0.32282698]
[1753241614940,0.53147094,118950.0,118940.0,0.33792698]
[1753241615212,0.52306419,118950.0,118940.0,0.33792698]
[1753241615432,0.52306419,118950.0,118940.0,0.34633422]
[1753241615759,0.53147087,118950.0,118940.0,0.34633422]
[1753241616600,0.53147087,118950.0,118940.0,0.33792698]
[1753241618820,0.53147087,118950.0,118940.0,0.34633422]
[1753241619242,0.53987776,118950.0,118940.0,0.34633422]
[1753241619446,0.53987776,118950.0,118940.0,0.33792698]
[1753241621053,0.53147108,118950.0,118940.0,0.33792698]
[1753241622684,0.53147108,118950.0,118940.0,0.32282698]
[1753241623008,0.53147108,118950.0,118940.0,0.33123422]
[1753241623244,0.53147108,118950.0,118940.0,0.32282698]
[1753241623691,0.53147108,118950.0,118940.0,0.3144196]
[1753241624130,0.53346108,118950.0,118940.0,0.3144196]
[1753241624590,0.53346108,118950.0,118940.0,0.32282712]
[1753241626056,0.81610235,118950.0,118940.0,0.32282712]
[1753241627378,0.81610235,118950.0,118940.0,0.33964195]
[1753241629915,0.81610235,118950.0,118940.0,0.33123457]
[1753241630115,0.81610235,118950.0,118940.0,0.20179457]
[1753241630333,0.81610235,118950.0,118940.0,0.33115457]
[1753241632714,0.53346108,118950.0,118940.0,0.33115457]
[1753241632931,0.81610235,118950.0,118940.0,0.33115457]
[1753241633390,0.85147937,118950.0,118940.0,0.33115457]
[1753241636532,0.53346108,118950.0,118940.0,0.33115457]
[1753241636746,0.85147937,118950.0,118940.0,0.33115457]
[1753241636932,0.84948937,118950.0,118940.0,0.34796919]
[1753241638294,0.84948937,118950.0,118940.0,0.33956195]
[1753241638998,0.84948937,118950.0,118940.0,0.21020195]
[1753241639141,0.84948937,118950.0,118940.0,0.33956195]
[1753241639379,0.84948937,118950.0,118940.0,0.34796926]
[1753241639567,0.84948937,118950.0,118940.0,0.33956195]
[1753241640002,0.85163937,118950.0,118940.0,0.33115457]
[1753241640721,0.84323248,118950.0,118940.0,0.32274712]
[1753241640927,0.84323248,118950.0,118940.0,0.13475]
[1753241641349,0.84323248,118950.0,118940.0,0.13272]
[1753241641530,0.87483248,118950.0,118940.0,0.13272]
[1753241641892,0.87483248,118950.0,118940.0,0.00336]
[1753241642100,1.19591077,118950.0,118940.0,0.13272]
[1753241642479,1.59591077,118950.0,118940.0,0.13272]
[1753241642686,2.06527077,118950.0,118940.0,0.00336]
[1753241643536,2.06427077,118950.0,118940.0,0.00336]
[1753241643763,2.06227077,118950.0,118940.0,0.00236]
[1753241643968,2.06527077,118950.0,118940.0,0.00236]
[1753241644172,2.06927077,118950.0,118940.0,0.00336]
[1753241644615,2.15374807,118950.0,118940.0,0.00336]
[1753241645240,1.80053263,118950.0,118940.0,0.00336]
[1753241645672,1.71605533,118950.0,118940.0,0.00336]
[1753241646525,1.58669533,118950.0,118940.0,0.00336]
[1753241646734,1.71605533,118950.0,118940.0,0.00336]
[1753241652031,1.69405533,118950.0,118940.0,0.00336]
[1753241654296,1.71605533,118950.0,118940.0,0.00336]
[1753241660208,1.74128633,118950.0,118940.0,0.00336]
[1753241661938,1.34128633,118950.0,118940.0,0.00336]
[1753241662164,1.42576363,118950.0,118940.0,0.00336]
[1753241666436,1.34128633,118950.0,118940.0,0.00336]
[1753241668159,1.33828633,118950.0,118940.0,0.00336]
[1753241668359,1.33428633,118950.0,118940.0,0.00236]
[1753241668561,1.33428633,118950.0,118940.0,0.00336]
[1753241668769,1.33728633,118950.0,118940.0,0.00336]
[1753241668982,1.05946519,118950.0,118940.0,0.00436]
[1753241669220,1.34228633,118950.0,118940.0,0.00436]
[1753241670038,1.21292633,118950.0,118940.0,0.00436]
[1753241670251,1.34228633,118950.0,118940.0,0.00436]
[1753241672258,1.42676363,118950.0,118940.0,0.00436]
[1753241673324,1.78029119,118950.0,118940.0,0.00436]
[1753241674089,1.21146954,118950.0,118940.0,0.00958]
[1753241674239,1.31559854,118950.0,118940.0,0.02468]
[1753241674593,1.63578289,118950.0,118940.0,0.00958]
[1753241675074,1.63578289,118950.0,118940.0,0.00652]
[1753241676883,1.63578289,118950.0,118940.0,0.00436]
[1753241677245,1.28220626,118950.0,118940.0,0.00436]
[1753241679071,1.17606826,118950.0,118940.0,0.02578]
[1753241679295,1.28019626,118950.0,118940.0,0.04108]
[1753241680005,1.31656626,118950.0,118940.0,0.00436]
[1753241681644,1.34179826,118950.0,118940.0,0.00436]
[1753241683463,1.42627556,118950.0,118940.0,0.00436]
[1753241685246,1.34179826,118950.0,118940.0,0.00436]
[1753241696941,0.54243127,118930.0,118920.0,0.003]
[1753241697157,1.04108064,118930.0,118920.0,0.003]
[1753241697636,1.29414064,118930.0,118920.0,0.003]
[1753241698310,1.29518974,118930.0,118920.0,0.003]
[1753241698553,1.29618974,118930.0,118920.0,0.005]
[1753241699826,1.35980762,118930.0,118920.0,0.005]
[1753241700173,1.65910762,118930.0,118920.0,0.005]
[1753241700807,1.65810762,118930.0,118920.0,0.005]
[1753241701012,1.66110762,118930.0,118920.0,0.006]
[1753241701215,1.66010762,118930.0,118920.0,0.004]
[1753241701782,1.66210762,118930.0,118920.0,0.004]
[1753241702202,1.36280762,118930.0,118920.0,0.004]
[1753241703319,1.64557969,118930.0,118920.0,0.004]
[1753241703555,1.67081969,118930.0,118920.0,0.004]
[1753241703796,0.01744902,118900.0,118890.0,0.0315]
[1753241704037,0.69277467,118900.0,118890.0,0.03669]
[1753241704258,0.69067724,118900.0,118890.0,0.03669]
[1753241704923,0.69067724,118900.0,118890.0,0.03769]
[1753241705835,0.69167724,118900.0,118890.0,0.03869]
[1753241706300,0.94167724,118900.0,118890.0,0.03769]
[1753241706734,0.94167724,118900.0,118890.0,0.03869]
[1753241708211,0.9499858,118900.0,118890.0,0.03869]
[1753241708643,0.97581039,118900.0,118890.0,0.03869]
[1753241710875,0.69303832,118900.0,118890.0,0.03869]
[1753241711282,0.97581039,118900.0,118890.0,0.03869]
[1753241714011,1.43638769,118900.0,118890.0,0.002]
[1753241715546,1.43538769,118900.0,118890.0,0.001]
[1753241715804,1.43838769,118900.0,118890.0,0.001]
[1753241716478,0.93408273,118890.0,118880.0,0.003]
[1753241716704,1.4327721,118890.0,118880.0,0.00513]
[1753241716948,1.5172494,118890.0,118880.0,0.00513]
[1753241717818,1.5182494,118890.0,118880.0,0.00662159]
[1753241718409,1.5192494,118890.0,118880.0,0.00662159]
[1753241718620,1.15200003,118890.0,118880.0,0.00662159]
[1753241718841,1.4347721,118890.0,118880.0,0.02578159]
[1753241719268,1.4347721,118890.0,118880.0,0.00968159]
[1753241719495,1.6847721,118890.0,118880.0,0.00968159]
[1753241720450,1.6847721,118890.0,118880.0,0.00662159]
[1753241721099,1.6847721,118890.0,118880.0,0.00968159]
[1753241721321,1.40200003,118890.0,118880.0,0.02558159]
[1753241721540,1.6847721,118890.0,118880.0,0.02558159]
[1753241721759,1.6847721,118890.0,118880.0,0.00968159]
[1753241721992,1.40200003,118890.0,118880.0,0.00968159]
[1753241722198,1.6847721,118890.0,118880.0,0.00968159]
[1753241722417,1.40200003,118890.0,118880.0,0.00968159]
[1753241722631,1.6847721,118890.0,118880.0,0.00968159]
[1753241725247,2.03884067,118890.0,118880.0,0.00968159]
[1753241726546,1.63884067,118890.0,118880.0,0.00662159]
[1753241726948,2.03884067,118890.0,118880.0,0.00662159]
[1753241730434,2.03884067,118890.0,118880.0,0.00449159]
[1753241733328,2.03884067,118890.0,118880.0,0.00662159]
[1753241733555,2.03884067,118890.0,118880.0,0.00984159]
[1753241734880,2.06931637,118890.0,118880.0,0.00662159]
[1753241735808,2.06931637,118890.0,118880.0,0.00449159]
[1753241736301,2.03884067,118890.0,118880.0,0.00449159]
[1753241739762,2.03884067,118890.0,118880.0,0.00662159]
[1753241741171,1.40200003,118890.0,118880.0,0.00662159]
[1753241741395,2.03884067,118890.0,118880.0,0.00662159]
[1753241741641,2.03884067,118890.0,118880.0,0.00984159]
[1753241742261,2.03884067,118890.0,118880.0,0.02574159]
[1753241742511,1.40200003,118890.0,118880.0,0.02574159]
[1753241742733,1.72042035,118890.0,118880.0,0.02574159]
[1753241743436,1.72042035,118890.0,118880.0,0.00984159]
[1753241743658,2.03884067,118890.0,118880.0,0.00984159]
[1753241743875,1.40200003,118890.0,118880.0,0.00984159]
[1753241744112,2.03884067,118890.0,118880.0,0.00984159]
[1753241744799,2.03884067,118890.0,118880.0,0.02534159]
[1753241745433,2.12645797,118890.0,118880.0,0.00449159]
[1753241746566,2.03884067,118890.0,118880.0,0.00449159]
[1753241747942,2.04198067,118890.0,118880.0,0.00449159]
[1753241748174,1.42084003,118890.0,118880.0,0.00449159]
[1753241748398,2.05768067,118890.0,118880.0,0.00449159]
[1753241748631,1.42084003,118890.0,118880.0,0.00449159]
[1753241748850,2.05768067,118890.0,118880.0,0.00449159]
[1753241749285,1.64198067,118890.0,118880.0,0.00449159]
[1753241749521,1.63884067,118890.0,118880.0,0.00449159]
[1753241749753,2.03884067,118890.0,118880.0,0.00449159]
[1753241751106,1.63884067,118890.0,118880.0,0.00449159]
[1753241753463,1.63884067,118890.0,118880.0,0.00244349]
[1753241756594,1.63884067,118890.0,118880.0,0.00445349]
[1753241757023,0.85311101,118890.0,118880.0,0.35796381]
[1753241757248,0.36171027,118890.0,118880.0,0.55143556]
[1753241757460,0.26882134,118890.0,118880.0,0.5598469]
[1753241757806,0.28564276,118890.0,118880.0,0.5598469]
[1753241758009,0.30309178,118890.0,118880.0,0.5598469]
[1753241758228,0.31150277,118890.0,118880.0,0.5598469]
[1753241758437,0.294681,118890.0,118880.0,0.5598469]
[1753241758900,0.29468093,118890.0,118880.0,0.5598469]
[1753241759215,0.29468093,118890.0,118880.0,0.24142658]
[1753241759412,0.29468093,118890.0,118880.0,0.5598469]
[1753241759845,0.30309185,118890.0,118880.0,0.5598469]
[1753241760273,0.47972556,118890.0,118880.0,0.6894069]
[1753241760488,0.47131507,118890.0,118880.0,0.23301524]
[1753241760702,0.47131507,118890.0,118880.0,0.68099556]
[1753241761142,0.47131507,118890.0,118880.0,0.6894069]
[1753241761619,0.47972613,118890.0,118880.0,0.6894069]
[1753241761835,0.47972613,118890.0,118880.0,0.68099556]
[1753241762864,0.47972613,118890.0,118880.0,0.6894069]
[1753241763148,0.47131507,118890.0,118880.0,0.6894069]
[1753241763366,0.29468136,118890.0,118880.0,0.37098658]
[1753241763584,0.30309235,118890.0,118880.0,0.6894069]
[1753241764143,0.47131507,118890.0,118880.0,0.6894069]
[1753241765041,0.27785966,118890.0,118880.0,0.6894069]
[1753241765305,0.28627044,118890.0,118880.0,0.6894069]
[1753241766061,0.29468136,118890.0,118880.0,0.6894069]
[1753241766473,0.28627044,118890.0,118880.0,0.6894069]
[1753241766680,0.29468143,118890.0,118880.0,0.6894069]
[1753241766905,0.29468136,118890.0,118880.0,0.6894069]
[1753241767357,0.27785966,118890.0,118880.0,0.6894069]
[1753241767584,0.28627051,118890.0,118880.0,0.6894069]
[1753241768046,0.28627044,118890.0,118880.0,0.37098658]
[1753241768270,0.27785966,118890.0,118880.0,0.6894069]
[1753241768482,0.26944902,118890.0,118880.0,0.5598469]
[1753241768708,0.28627037,118890.0,118880.0,0.6893669]
[1753241770234,0.45449309,118890.0,118880.0,0.67254415]
[1753241770478,0.45349351,118890.0,118880.0,0.16906349]
[1753241770921,0.45249351,118890.0,118880.0,0.34471213]
[1753241771312,0.45349351,118890.0,118880.0,0.34571213]
[1753241771520,0.44508273,118890.0,118880.0,0.3457122]
[1753241771791,0.44508273,118890.0,118880.0,0.3541239]
[1753241772010,0.44608273,118890.0,118880.0,0.3541239]
[1753241772218,0.44608273,118890.0,118880.0,0.36253553]
[1753241772438,0.44608273,118890.0,118880.0,0.68095585]
[1753241772874,0.44608273,118890.0,118880.0,0.67254422]
[1753241773226,0.44608273,118890.0,118880.0,0.66413252]
[1753241773951,0.43767174,118890.0,118880.0,0.16906349]
[1753241775595,0.43767174,118890.0,118880.0,0.48748381]
[1753241778189,0.43767174,118890.0,118880.0,0.16906349]
[1753241779010,0.73697174,118890.0,118880.0,0.16906349]
[1753241780124,0.73697174,118890.0,118880.0,0.16894349]
[1753241781788,0.73697174,118890.0,118880.0,0.3455922]
[1753241781989,0.73697174,118890.0,118880.0,0.67242429]
[1753241782460,0.73697174,118890.0,118880.0,0.49577565]
[1753241782907,0.73655636,118890.0,118880.0,0.17735533]
[1753241783130,0.73655636,118890.0,118880.0,0.16894349]
[1753241783559,0.73655636,118890.0,118880.0,0.48736381]
[1753241786235,0.73655636,118890.0,118880.0,0.65560068]
[1753241786447,0.73655636,118890.0,118880.0,0.67242415]
[1753241787358,0.73655636,118890.0,118880.0,0.66401245]
[1753241792063,0.74496735,118890.0,118880.0,0.66401245]
[1753241792303,0.74496735,118890.0,118880.0,0.67242408]
[1753241792971,0.74496735,118890.0,118880.0,0.66401245]
[1753241793295,0.74496735,118890.0,118880.0,0.67242415]
[1753241793506,0.74496735,118890.0,118880.0,0.68083578]
[1753241793907,0.74496735,118890.0,118880.0,0.68924734]
[1753241794349,0.74496735,118890.0,118880.0,0.68083578]
[1753241794747,0.74496735,118890.0,118880.0,0.69765883]
[1753241795836,0.74496735,118890.0,118880.0,0.37923851]
[1753241796064,0.74496735,118890.0,118880.0,0.69765883]
[1753241798048,0.74496735,118890.0,118880.0,0.69765847]
[1753241800290,0.76178919,118890.0,118880.0,0.69765847]
[1753241800508,0.76178919,118890.0,118880.0,0.69765811]
[1753241800702,0.59356591,118890.0,118880.0,0.69765811]
[1753241801155,0.57674421,118890.0,118880.0,0.69765811]
[1753241801589,0.58515492,118890.0,118880.0,0.69765811]
[1753241801995,0.59356577,118890.0,118880.0,0.69765811]
[1753241802216,0.58515492,118890.0,118880.0,0.69765811]
[1753241802657,0.58515492,118890.0,118880.0,0.37923779]
[1753241802862,0.57674421,118890.0,118880.0,0.69765811]
[1753241803072,0.55088462,118890.0,118880.0,1.01603843]
[1753241803302,0.002,118890.0,118880.0,1.10051573]
[1753241803990,0.001,118890.0,118880.0,1.09951573]
[1753241804463,0.30108633,118910.0,118900.0,0.20893899]
[1753241804683,0.29267675,118910.0,118900.0,0.65871931]
[1753241804920,0.30108618,118910.0,118900.0,0.34351899]
[1753241805132,0.30108618,118910.0,118900.0,0.66193931]
[1753241805349,0.29267668,118910.0,118900.0,0.66193931]
[1753241805564,0.29367668,118910.0,118900.0,0.66193931]
[1753241806209,0.28626732,118910.0,118900.0,0.66293931]
[1753241806425,0.28626732,118910.0,118900.0,0.67813931]
[1753241806426,0.29467661,118910.0,118900.0,0.67813931]
[1753241806943,0.30308604,118910.0,118900.0,0.67813931]
[1753241807792,0.47128097,118910.0,118900.0,0.33610906]
[1753241808009,0.47128097,118910.0,118900.0,0.63902938]
[1753241808220,0.47969069,118910.0,118900.0,0.66383945]
[1753241808440,0.29467696,118910.0,118900.0,0.67224938]
[1753241809155,0.29467696,118910.0,118900.0,0.68834938]
[1753241809794,0.30308654,118910.0,118900.0,0.68834938]
[1753241811867,0.29467696,118910.0,118900.0,0.68834938]
[1753241812086,0.30308654,118910.0,118900.0,0.68834938]
[1753241813436,0.30308654,118910.0,118900.0,0.67224938]
[1753241813566,0.29467696,118910.0,118900.0,0.67224938]
[1753241813788,0.30308646,118910.0,118900.0,0.67224938]
[1753241816413,0.31149604,118910.0,118900.0,0.67224938]
[1753241819694,0.31149604,118910.0,118900.0,0.35382906]
[1753241819892,0.31149604,118910.0,118900.0,0.67224938]
[1753241820150,0.30308646,118910.0,118900.0,0.67224938]
[1753241820378,0.28626739,118910.0,118900.0,0.68814938]
[1753241820611,0.30308633,118910.0,118900.0,0.36972906]
[1753241820867,0.30308633,118910.0,118900.0,0.68814938]
[1753241821091,0.30308633,118910.0,118900.0,0.35382906]
[1753241821310,0.47128076,118910.0,118900.0,0.64743945]
[1753241822171,0.46287168,118910.0,118900.0,0.64743938]
[1753241822408,0.46287168,118910.0,118900.0,0.64743945]
[1753241822619,0.45446239,118910.0,118900.0,0.63902966]
[1753241822854,0.45446239,118910.0,118900.0,0.64743994]
[1753241823277,0.45446239,118910.0,118900.0,0.65585015]
[1753241824069,0.45446239,118910.0,118900.0,0.13558]
[1753241824295,0.88519065,118910.0,118900.0,0.13032]
[1753241824534,1.01451065,118910.0,118900.0,0.13032]
[1753241824975,1.01451065,118910.0,118900.0,0.001]
[1753241828245,1.03974865,118910.0,118900.0,0.001]
[1753241828454,0.72132833,118910.0,118900.0,0.001]
[1753241828688,1.03974865,118910.0,118900.0,0.001]
[1753241829127,1.01451065,118910.0,118900.0,0.001]
[1753241858420,0.69609033,118910.0,118900.0,0.001]
[1753241858604,1.01451065,118910.0,118900.0,0.001]
[1753241861407,0.99861065,118910.0,118900.0,0.001]
[1753241861636,1.01451065,118910.0,118900.0,0.001]
[1753241862609,0.98331065,118910.0,118900.0,0.001]
[1753241862819,0.98023065,118910.0,118900.0,0.001]
[1753241864680,1.01389065,118910.0,118900.0,0.001]
[1753241866922,0.69547033,118910.0,118900.0,0.001]
[1753241867322,1.01389065,118910.0,118900.0,0.001]
[1753241874833,1.35389065,118910.0,118900.0,0.001]
[1753241875186,1.37912865,118910.0,118900.0,0.001]
[1753241875387,1.77912865,118910.0,118900.0,0.001]
[1753241875837,1.80419702,118910.0,118900.0,0.001]
[1753241877573,1.77895902,118910.0,118900.0,0.001]
[1753241880464,1.77589902,118910.0,118900.0,0.001]
[1753241881092,1.77905902,118910.0,118900.0,0.001]
[1753241881305,1.74845902,118910.0,118900.0,0.001]
[1753241881745,1.76455902,118910.0,118900.0,0.001]
[1753241882184,1.65133902,118910.0,118900.0,0.001]
[1753241882411,1.78061902,118910.0,118900.0,0.001]
[1753241886588,1.38061902,118910.0,118900.0,0.001]
[1753241890545,1.78061902,118910.0,118900.0,0.001]
[1753241893118,0.20249351,118890.0,118880.0,0.03693349]
[1753241893351,0.60539113,118890.0,118880.0,0.03895349]
[1753241893865,0.60736113,118890.0,118880.0,0.00144349]
[1753241894334,0.85736113,118890.0,118880.0,0.00144349]
[1753241894548,0.85836113,118890.0,118880.0,0.00546349]
[1753241894997,0.85936113,118890.0,118880.0,0.02595349]
[1753241895539,0.98860113,118890.0,118880.0,0.02595349]
[1753241899430,0.66821081,118890.0,118880.0,0.04145349]
[1753241899568,0.85739113,118890.0,118880.0,0.04145349]
[1753241899806,0.53897081,118890.0,118880.0,0.04145349]
[1753241900268,0.85739113,118890.0,118880.0,0.04145349]
[1753241900951,0.53897081,118890.0,118880.0,0.04145349]
[1753241901396,0.85739113,118890.0,118880.0,0.04145349]
[1753241902783,1.01018081,118890.0,118880.0,0.00544349]
[1753241902985,1.68188145,118890.0,118880.0,0.00544349]
[1753241907877,1.36346113,118890.0,118880.0,0.00544349]
[1753241908379,1.36361113,118890.0,118880.0,0.00544349]
[1753241909589,1.68203145,118890.0,118880.0,0.00544349]
[1753241910006,1.36361113,118890.0,118880.0,0.00544349]
[1753241911230,1.68203145,118890.0,118880.0,0.00544349]
[1753241911979,1.36361113,118890.0,118880.0,0.00544349]
[1753241913694,1.68203145,118890.0,118880.0,0.00544349]
[1753241914885,1.20267113,118890.0,118880.0,0.00544349]
[1753241915056,1.33191113,118890.0,118880.0,0.00544349]
[1753241916225,1.42620189,118890.0,118880.0,0.00544349]
[1753241916441,1.76042221,118890.0,118880.0,0.00544349]
[1753241916675,1.04589081,118890.0,118880.0,0.00544349]
[1753241916907,1.68273145,118890.0,118880.0,0.00544349]
[1753241917131,1.04589081,118890.0,118880.0,0.00544349]
[1753241917367,1.68273145,118890.0,118880.0,0.00544349]
[1753241921649,1.36431113,118890.0,118880.0,0.00544349]
[1753241922692,1.34851113,118890.0,118880.0,0.00544349]
[1753241923476,1.34526113,118890.0,118880.0,0.00544349]
[1753241923685,1.32866113,118890.0,118880.0,0.00544349]
[1753241923894,1.01024081,118890.0,118880.0,0.00544349]
[1753241924145,1.32866113,118890.0,118880.0,0.00544349]
[1753241926984,0.88100081,118890.0,118880.0,0.01040349]
[1753241927234,1.32707113,118890.0,118880.0,0.04110349]
[1753241928882,0.52152179,118890.0,118880.0,0.52776068]
[1753241929065,0.52152179,118890.0,118880.0,0.35952381]
[1753241929521,0.53897081,118890.0,118880.0,0.35952381]
[1753241930347,0.53897081,118890.0,118880.0,0.04110349]
[1753241930511,0.53897081,118890.0,118880.0,0.35952381]
[1753241930738,0.53897081,118890.0,118880.0,0.04110349]
[1753241930938,0.53897081,118890.0,118880.0,0.04105244]
[1753241931280,0.53897081,118890.0,118880.0,0.52770963]
[1753241931507,0.53897081,118890.0,118880.0,0.5361214]
[1753241931704,0.53056003,118890.0,118880.0,0.3678846]
[1753241932551,0.53056003,118890.0,118880.0,0.3678335]
[1753241932947,0.52214904,118890.0,118880.0,0.35942166]
[1753241935743,0.52214904,118890.0,118880.0,0.3678335]
[1753241935943,0.52214904,118890.0,118880.0,0.53607037]
[1753241936166,0.52214904,118890.0,118880.0,0.35942166]
[1753241936996,0.52214904,118890.0,118880.0,0.04100134]
[1753241937106,0.52214904,118890.0,118880.0,0.54443102]
[1753241937316,0.53056003,118890.0,118880.0,0.53601932]
[1753241938571,0.53056003,118890.0,118880.0,0.67423102]
[1753241938786,0.53056003,118890.0,118880.0,0.54443102]
[1753241939062,0.53056003,118890.0,118880.0,0.67419102]
[1753241939921,0.44608273,118890.0,118880.0,0.67419102]
[1753241940129,0.44608273,118890.0,118880.0,0.67414004]
[1753241940368,0.44608273,118890.0,118880.0,0.68255167]
[1753241940795,0.46290464,118890.0,118880.0,0.69096316]
[1753241941463,0.46290464,118890.0,118880.0,0.69937457]
[1753241941704,0.46290464,118890.0,118880.0,0.68255167]
[1753241942352,0.46290464,118890.0,118880.0,0.69096323]
[1753241942795,0.46290464,118890.0,118880.0,0.36413135]
[1753241943017,0.45449386,118890.0,118880.0,0.36413135]
[1753241943242,0.45449386,118890.0,118880.0,0.67414004]
[1753241943803,0.45449386,118890.0,118880.0,0.68255174]
[1753241944376,0.45449386,118890.0,118880.0,0.36413142]
[1753241945829,0.45449386,118890.0,118880.0,0.38095461]
[1753241946266,0.45449386,118890.0,118880.0,0.69937493]
[1753241946796,0.45449386,118890.0,118880.0,0.69096337]
[1753241949056,0.45449386,118890.0,118880.0,0.69096302]
[1753241949260,0.45449386,118890.0,118880.0,0.69937443]
[1753241949469,0.45449386,118890.0,118880.0,0.699374]
[1753241951544,0.2778598,118890.0,118880.0,0.699374]
[1753241951755,0.29468136,118890.0,118880.0,0.699374]
[1753241951969,0.30309242,118890.0,118880.0,0.699374]
[1753241952183,0.26944902,118890.0,118880.0,0.699374]
[1753241952385,0.01944902,118890.0,118880.0,0.699374]
[1753241953430,0.01944902,118890.0,118880.0,0.70785251]
[1753241956229,0.01944902,118890.0,118880.0,0.38943219]
[1753241956455,0.01944902,118890.0,118880.0,0.70785251]
[1753241961214,0.01944902,118890.0,118880.0,0.569614]
[1753241961441,0.01944902,118890.0,118880.0,0.699054]
[1753241962021,0.01944902,118890.0,118880.0,0.70730868]
[1753241968530,0.02785951,118890.0,118880.0,0.70730868]
[1753241969204,0.01944902,118890.0,118880.0,0.70730868]
[1753241972588,0.02785959,118890.0,118880.0,0.70730868]
[1753241972849,0.02785951,118890.0,118880.0,0.70730868]
[1753241973928,0.01944902,118890.0,118880.0,0.70730868]
[1753241985356,0.002,118890.0,118880.0,1.1102063]
[1753241986194,0.002,118890.0,118880.0,0.79178598]
[1753241997502,0.0019093,118890.0,118880.0,0.79178598]
[1753241997725,0.00177327,118890.0,118880.0,0.79178598]
[1753241999113,0.00177327,118890.0,118880.0,1.1102063]
[1753242000462,0.00077327,118890.0,118880.0,1.1082063]
[1753242000913,0.00177327,118890.0,118880.0,1.4502063]
[1753242001412,1e-08,118890.0,118880.0,1.4502063]
[1753242001639,0.31674902,118920.0,118910.0,0.19342273]
[1753242001864,0.31674902,118920.0,118910.0,0.64312305]
[1753242002328,0.31674902,118920.0,118910.0,0.64624305]
[1753242002549,0.32515739,118920.0,118910.0,0.64624305]
[1753242002770,0.31674902,118920.0,118910.0,0.64624305]
[1753242003665,0.32515739,118920.0,118910.0,0.64624305]
[1753242004099,0.33356598,118920.0,118910.0,0.32782273]
[1753242004316,0.39294245,118920.0,118910.0,0.64624305]
[1753242004522,0.39394245,118920.0,118910.0,0.64824305]
[1753242004734,0.38553351,118920.0,118910.0,0.64824305]
[1753242005206,0.54530542,118920.0,118910.0,0.63671383]
[1753242005421,0.55371436,118920.0,118910.0,0.64512312]
[1753242005628,0.55371436,118920.0,118910.0,0.65453234]
[1753242005840,0.56212337,118920.0,118910.0,0.64612312]
[1753242006514,0.55371436,118920.0,118910.0,0.65453234]
[1753242006730,0.56212337,118920.0,118910.0,0.64612312]
[1753242006945,0.26282337,118920.0,118910.0,0.64612312]
[1753242007654,0.25441436,118920.0,118910.0,0.65453234]
[1753242007857,0.24600542,118920.0,118910.0,0.65453234]
[1753242008060,0.25441436,118920.0,118910.0,0.33611202]
[1753242008341,0.25441436,118920.0,118910.0,0.65453234]
[1753242008501,0.26282337,118920.0,118910.0,0.64612312]
[1753242009310,0.25441436,118920.0,118910.0,0.64612312]
[1753242009520,0.25441436,118920.0,118910.0,0.65453234]
[1753242009741,0.25441436,118920.0,118910.0,0.65449234]
[1753242010190,0.25441436,118920.0,118910.0,0.64608312]
[1753242010413,0.26282337,118920.0,118910.0,0.64608312]
[1753242011746,0.26282337,118920.0,118910.0,0.3276628]
[1753242011956,0.26282337,118920.0,118910.0,0.64608312]
[1753242012365,0.26282337,118920.0,118910.0,0.17323443]
[1753242012581,0.25441478,118920.0,118910.0,0.63767397]
[1753242012774,0.25441478,118920.0,118910.0,0.6460834]
[1753242013206,0.25441478,118920.0,118910.0,0.65449276]
[1753242013615,0.25441478,118920.0,118910.0,0.66290205]
[1753242014064,0.24600577,118920.0,118910.0,0.66290155]
[1753242014269,0.25441478,118920.0,118910.0,0.65449233]
[1753242015742,0.24600577,118920.0,118910.0,0.66290155]
[1753242015947,0.05361655,118920.0,118910.0,0.66602155]
[1753242016356,0.06202492,118920.0,118910.0,0.66602155]
[1753242016592,0.24702301,118920.0,118910.0,0.66602155]
[1753242016799,0.23861457,118920.0,118910.0,0.64920304]
[1753242017091,0.25511457,118920.0,118910.0,0.64920304]
[1753242017709,0.25511457,118920.0,118910.0,0.65761233]
[1753242018127,0.25511457,118920.0,118910.0,0.66602155]
[1753242020259,0.26352358,118920.0,118910.0,0.65761233]
[1753242022555,0.07852535,118920.0,118910.0,0.65761233]
[1753242022731,0.07852535,118920.0,118910.0,0.66602155]
[1753242022974,0.06202535,118920.0,118910.0,0.66602155]
[1753242023599,0.06202535,118920.0,118910.0,0.003]
[1753242023600,1.02858182,118920.0,118910.0,0.003]
[1753242024039,1.32788182,118920.0,118910.0,0.003]
[1753242024250,1.72788182,118920.0,118910.0,0.003]
[1753242024430,1.57788182,118920.0,118910.0,0.003]
[1753242024574,1.57788182,118920.0,118910.0,0.002]
[1753242024993,0.22578273,118890.0,118880.0,0.00123924]
[1753242025202,0.22578273,118890.0,118880.0,0.13039924]
[1753242025203,0.22773273,118890.0,118880.0,0.13039924]
[1753242025608,0.23068273,118890.0,118880.0,0.13039924]
[1753242025808,0.2390729,118890.0,118880.0,0.00123924]
[1753242026013,0.73564386,118890.0,118880.0,0.00123924]
[1753242026442,0.98564386,118890.0,118880.0,0.00123924]
[1753242026661,0.98664386,118890.0,118880.0,0.00523924]
[1753242027639,0.98764386,118890.0,118880.0,0.00523924]
[1753242028225,0.98664386,118890.0,118880.0,0.00123924]
[1753242028438,1.01205925,118890.0,118880.0,0.00123924]
[1753242028645,1.01305925,118890.0,118880.0,0.00323924]
[1753242029369,1.41305925,118890.0,118880.0,0.00323924]
[1753242029589,1.28389925,118890.0,118880.0,0.00323924]
[1753242029806,1.41305925,118890.0,118880.0,0.00323924]
[1753242031733,1.65235925,118890.0,118880.0,0.00323924]
[1753242032347,2.05235925,118890.0,118880.0,0.00323924]
[1753242032781,1.65235925,118890.0,118880.0,0.00323924]
[1753242033446,1.52319925,118890.0,118880.0,0.00323924]
[1753242033667,1.65235925,118890.0,118880.0,0.00323924]
[1753242034092,0.19409759,118880.0,118870.0,0.0003065]
[1753242034304,0.90170521,118880.0,118870.0,0.00014696]
[1753242034515,0.62217155,118880.0,118870.0,0.00014696]
[1753242035163,0.62217155,118880.0,118870.0,0.00114696]
[1753242035378,0.62517155,118880.0,118870.0,0.00114696]
[1753242035824,0.62717155,118880.0,118870.0,0.00214696]
[1753242036235,0.87717155,118880.0,118870.0,0.00214696]
[1753242036454,1.61717155,118880.0,118870.0,0.00214696]
[1753242036687,1.61717155,118880.0,118820.0,0.30216662]
[1753242036688,0.01682969,118830.0,118820.0,0.30216662]
[1753242036949,0.0336601,118830.0,118820.0,0.31638464]
[1753242037159,0.20196833,118830.0,118820.0,0.30796905]